Cogmind - Beta 17.1 @@@ ROGUE MODE // 2026.08.19 @ 12:27:14 Player: Infomantis Result: Destroyed by G-47 Trooper with Particle Gun Performance ------------- Evolutions (1) 500 Regions Visited (5) 1000 Robots Destroyed (48) 240 Value Destroyed (908) 908 Prototype IDs (28) 560 Alien Tech Used (0) 0 Bonus (7800) 7800 TOTAL SCORE: 11008 Bonus ------- Prayed to X0-1V1 5000 Major X0-1V1 Interference 2500 Aligned with FarCom 300 Cogmind --------- Core Integrity 0/250 Matter 210/300 Energy 1000/1000 System Corruption 7% Temperature Cool (9) Movement Rolling (120) Ox2 Location -8/Mines Parts ------- > --- POWER (1) -------- (None) > --- PROPULSION (3) --- Carbon-fiber Leg (fused) VSS Leg (fused) Armored Wheel (fused) > --- UTILITY (3) ------ Large Storage Unit Self-contained Transmogrifier X0-1V1's Piety Tracker > --- WEAPON (3) ------- Autogun High-powered Shotgun (fused) > --- INVENTORY (15) --- Heavy Ion Engine Improved Treads Flight Unit Flight Unit Flight Unit Seismic Detector Transport Network Coupler Light Armor Plating Hacking Suite AWS/Gauss Mini Grenade Launcher Mining Laser Peak State ------------ > --- POWER ------------ Heavy Ion Engine > --- PROPULSION ------- Armored Wheel Armored Huge Wheel > --- UTILITY ---------- Large Storage Unit Self-contained Transmogrifier X0-1V1's Piety Tracker > --- WEAPON ----------- Autogun High-powered Shotgun > --- INVENTORY -------- Heavy Ion Engine Improved Treads Flight Unit Flight Unit Flight Unit Seismic Detector Transport Network Coupler Light Armor Plating Hacking Suite AWS/Gauss Mini Grenade Launcher Mining Laser [Rating: 44] Favorites ----------- Power Ion Engine Engine Ion Engine Power Core Light Nuclear Core Propulsion Light Treads Treads Light Treads Leg VSS Leg Wheel Armored Wheel Hover Unit Hover Unit Flight Unit VTOL Module Utility Large Storage Unit Device Self-contained Transmogrifier Storage Large Storage Unit Weapon Assault Rifle Energy Gun Advanced Beam Rifle Ballistic Gun Assault Rifle Ballistic Cannon Heavy Assault Cannon Launcher Mini Grenade Launcher Impact Weapon Hammer Build | -11 -10 -9 -9 -9 -8 ------- Run | Yrd Mat Mat Min Exi Min Slots Evolved 2 | . . 2 . . . Power . | . . . . . . Propulsion 1 | . . 1 . . . Utility 1 | . . 1 . . . Weapon . | . . . . . . Parts Attached 26 | 7 8 8 1 . 2 Power 4 | 1 2 1 . . . Engine 4 | 1 2 1 . . . Core . | . . . . . . Reactor . | . . . . . . Propulsion 7 | 2 1 4 . . . Treads 5 | 2 1 2 . . . Leg . | . . . . . . Wheel 1 | . . 1 . . . Hover . | . . . . . . Flight 1 | . . 1 . . . Utility 5 | 2 2 1 . . . Device 2 | 1 . 1 . . . Storage 3 | 1 2 . . . . Processor . | . . . . . . Hackware . | . . . . . . Protection . | . . . . . . Artifact . | . . . . . . Weapon 10 | 2 3 2 1 . 2 Energy Gun 3 | . 2 . . . 1 Energy Cannon . | . . . . . . Ballistic Gun 6 | 2 1 2 . . 1 Ballistic Cannon . | . . . . . . Launcher 1 | . . . 1 . . Special Weapon . | . . . . . . Impact Weapon . | . . . . . . Slashing Weapon . | . . . . . . Piercing Weapon . | . . . . . . Special Melee Weapon . | . . . . . . Unidentified Prototypes 1 | . . 1 . . . Parts Lost 5 | . 1 2 1 . 1 Power 2 | . . 1 . . 1 Propulsion 2 | . 1 1 . . . Utility . | . . . . . . Weapon 1 | . . . 1 . . Highest Loss Streak 1 | . 1 1 1 . 1 To Critical Strikes . | . . . . . . Average Backups 13 | 4 12 14 15 14 12 Power . | . . . 1 1 1 Propulsion 3 | . 3 4 4 4 4 Utility 5 | 1 6 5 5 4 4 Weapon 3 | 1 2 3 5 4 3 Tool/Special . | . . . . . . Unused Backups 20 | . 3 5 . 1 11 Power 1 | . . . . . 1 Propulsion 6 | . . 2 . . 4 Utility 10 | . 2 3 . 1 4 Weapon 3 | . 1 . . . 2 Tool/Special . | . . . . . . Average Slot Usage (%) 95 | . 100 98 97 78 84 Engine 9 | . 11 2 11 11 9 Core 2 | . 2 8 . . . Treads 12 | . 27 7 5 . . Wheel 9 | . . 12 17 11 16 Hover 2 | . . 11 . . . Flight 5 | . . 1 10 22 3 Device 19 | . 14 22 22 22 21 Storage 12 | . 14 11 11 11 10 Energy Gun 5 | . 4 2 10 . 2 Ballistic Gun 13 | . 21 14 8 . 13 Impact Weapon 1 | . 2 5 . . . Peak Build Rating 44 | 8 21 40 39 39 44 Average Rating 26 | 6 14 35 37 34 41 On Entrance 23 | . 8 21 38 39 36 Avg Prop Armor Cover (%) 11 | . 7 15 8 15 11 Naked Turns . | . . . . . . Heaviest Build 36 | 14 31 35 36 36 35 Greatest Support 40 | 40 40 24 28 12 40 Greatest Overweight (x) 2 | . 1 2 2 2 2 Average Overweight (x) . | . . 1 1 1 . Largest Inventory Capacity 20 | 8 20 15 15 15 15 Average Capacity 14 | 7 14 15 15 15 15 Most Carried 15 | 8 15 15 15 15 15 Average Carried 13 | 4 12 14 15 14 13 Final Capacity 15 | 8 15 15 15 15 15 Final Carried 15 | 8 15 15 15 15 13 Transmogrified Parts 29 | . 8 5 8 1 7 Integrity Recovered 289 | . 72 45 87 5 80 Class Distribution -------------------- 100% | Mutant Dominant Class ---------------- Mutant | -10/Materials Mutant | -9/Materials Mutant | -9/Mines Mutant | -9/Exiles Mutant | -8/Mines Resources | -11 -10 -9 -9 -9 -8 ----------- Run | Yrd Mat Mat Min Exi Min Matter Collected 1608 | 370 552 475 171 . 40 Remotely . | . . . . . . Salvage Created 1449 | 230 460 552 139 . 68 Parts 109 | 24 28 42 10 . 5 Haulers Intercepted 3 | . 2 1 . . . Recyclers Shooed . | . . . . . . Parts Field Recycled . | . . . . . . Retrieved Matter . | . . . . . . Parts Self-Destructed . | . . . . . . Prevented . | . . . . . . Parts Restored . | . . . . . . Kills | -11 -10 -9 -9 -9 -8 ------- Run | Yrd Mat Mat Min Exi Min Combat Hostiles Destroyed 31 | . 10 11 6 . 4 Guns 28 | . 10 11 3 . 4 AOE 3 | . . . 3 . . Classes Destroyed 10 | 3 4 3 . . . Worker 1 | 1 . . . . . Builder 2 | . . 2 . . . Tunneler 6 | 6 . . . . . Hauler 3 | . 2 1 . . . Recycler 3 | 1 1 1 . . . Operator 2 | . . 2 . . . Swarmer 14 | . 5 3 3 . 3 Grunt 12 | . 3 5 3 . 1 Sentry 3 | . . 3 . . . Subdweller 2 | . 2 . . . . Best Kill Streak 5 | 3 4 5 3 . 3 Combat Bots Only 4 | . 4 4 3 . 3 Max Kills in Single Turn 3 | 1 1 2 3 . 1 Gunslinging . | . . . . . . Exploded 3 | . . . 3 . . Melee . | . . . . . . Uniques/NPCs Destroyed . | . . . . . . Combat | -11 -10 -9 -9 -9 -8 -------- Run | Yrd Mat Mat Min Exi Min Hostile Shots Fired 154 | . 58 36 26 . 34 Missed 35 | . 14 9 6 . 6 Hits 119 | . 44 27 20 . 28 Projectile 119 | . 44 27 20 . 28 Critical Strikes 4 | . 1 1 . . 2 Damage Taken 1501 | . 532 326 209 . 434 Core 319 | . 69 84 38 . 128 Absorbed by Shields . | . . . . . . Core Remaining (%) 65 | 100 31 . . . . Volleys Fired 129 | 25 42 37 10 . 15 Largest 2 | 2 2 2 2 . 2 Hottest 91 | 40 60 91 91 . 79 Shots Fired 250 | 50 84 68 20 . 28 Gun 249 | 50 84 68 19 . 28 Cannon . | . . . . . . Launcher 1 | . . . 1 . . Special . | . . . . . . Kinetic 213 | 50 72 61 9 . 21 Thermal 36 | . 12 7 10 . 7 Explosive 1 | . . . 1 . . Electromagnetic . | . . . . . . Robot Hit Streak 14 | 7 14 8 6 . 8 Robot Miss Streak 5 | 2 5 3 5 . 3 Penetration Max . | . . . . . . Secondary Targets 4 | . 2 . 2 . . Max Gunslinging Chain 1 | . 1 . 1 . . Shots Hit Robots 160 | 35 55 42 9 . 19 Core Hits 72 | 12 25 21 6 . 8 Critical Kills . | . . . . . . Critical Parts Destroyed . | . . . . . . Critical Strikes 1 | . . 1 . . . Burn 1 | . . 1 . . . Melee Attacks . | . . . . . . Impact . | . . . . . . Slashing . | . . . . . . Piercing . | . . . . . . Sneak Attacks . | . . . . . . Combat Hostiles . | . . . . . . Follow-up Attacks . | . . . . . . Damage Inflicted 2514 | 363 655 835 373 . 288 Guns 2312 | 363 632 835 194 . 288 Cannons . | . . . . . . Explosions 179 | . . . 179 . . Melee . | . . . . . . Ramming 23 | . 23 . . . . Kinetic 1949 | 363 532 735 74 . 245 Thermal 363 | . 100 100 120 . 43 Explosive 179 | . . . 179 . . Electromagnetic . | . . . . . . Impact . | . . . . . . Slashing . | . . . . . . Piercing . | . . . . . . Highest Corruption 7 | . 2 7 7 7 7 Average Corruption 5 | . 1 7 7 7 7 Corruption Purged . | . . . . . . Corruption Blocked . | . . . . . . Effects 59 | . 11 10 23 8 7 Message Errors 16 | . 3 3 6 2 2 Matter Fused 18 | . 5 2 7 3 1 Heat Flow Errors 8 | . 1 3 3 . 1 Energy Discharges 4 | . 2 . 1 1 . Data Loss (minor) 6 | . . 1 3 2 . Data Loss (major) 1 | . . . . . 1 Misfires 2 | . . . 2 . . Alerts 1 | . . . 1 . . Weapon Failures 3 | . . 1 . . 2 Overload Shots . | . . . . . . Overflow Damage . | . . . . . . Projectiles . | . . . . . . Explosions . | . . . . . . Melee . | . . . . . . Knockbacks 1 | . 1 . . . . Impact 1 | . 1 . . . . Kinetic . | . . . . . . Secondary . | . . . . . . Self-Inflicted Damage 20 | . . . 20 . . Shots 1 | . . . 1 . . Rammed 3 | . 3 . . . . Targets Rammed 3 | . 3 . . . . Kicked . | . . . . . . Crushed . | . . . . . . Highest Temperature 254 | . 240 234 254 . 128 Average Temperature 82 | . 115 77 91 . 48 Received Heat Transfer 492 | . 102 147 54 . 189 Siege Activations . | . . . . . . Martial Activations . | . . . . . . Shielding Activations . | . . . . . . Robots Disrupted . | . . . . . . Combat Hostiles . | . . . . . . Robots Corrupted . | . . . . . . Combat Hostiles . | . . . . . . Parts Fried . | . . . . . . Impact Corruptions . | . . . . . . Robots Melted . | . . . . . . Combat Hostiles . | . . . . . . Parts Melted 2 | . 1 . . . 1 Heat Transferred 817 | . 225 259 222 . 111 Parts Sabotaged . | . . . . . . Parts Stolen . | . . . . . . Parts Stripped . | . . . . . . Power Chain Reactions . | . . . . . . Alert | -11 -10 -9 -9 -9 -8 ------- Run | Yrd Mat Mat Min Exi Min Maximum Alert Level 1 | . . 1 1 . . Low Security (%) 99 | 100 100 98 99 . 100 Level 1 . | . . 1 . . . Level 2 . | . . . . . . Level 3 . | . . . . . . Level 4 . | . . . . . . Level 5 . | . . . . . . High Security . | . . . . . . Max Security . | . . . . . . Sterilizations 1 | . 1 . . . . Peak Influence 206 | 15 74 206 201 . 85 Initial 70 | . . . 70 . . Average 39 | 1 21 79 55 . 32 Influence Increases 1023 | 40 212 352 314 . 105 Destroy 0b10 Robot/C 580 | . 160 220 120 . 80 Destroy 0b10 Robot/NC 85 | 40 15 30 . . . Destroy Leader 106 | . 24 52 20 . 10 Successful Hack 26 | . 13 13 . . . Disable Machine 15 | . . 15 . . . Destroy Structure 17 | . . 7 10 . . Partial Spotted 15 | . . 15 . . . Lose Combat Pursuer 15 | . . . . . 15 Miscellaneous 164 | . . . 164 . . Influence Decreases 998 | 40 212 169 344 153 80 Entered New Map 266 | . . . 113 153 . Time Decay 682 | 40 202 149 221 . 70 Lost Part 50 | . 10 20 10 . 10 Squads Dispatched 4 | . 2 1 1 . . Investigation 1 | . . . 1 . . Extermination . | . . . . . . Reinforcement 3 | . 2 1 . . . Assault . | . . . . . . Garrison . | . . . . . . Intercept . | . . . . . . Searches Triggered . | . . . . . . Construction Impeded . | . . . . . . Haulers Reinforced . | . . . . . . Active Scanning Responses . | . . . . . . Cargo Convoy Interrupts . | . . . . . . Stealth | -11 -10 -9 -9 -9 -8 --------- Run | Yrd Mat Mat Min Exi Min Distress Signals 4 | . . 4 . . . Communications Jammed . | . . . . . . Distress Signals . | . . . . . . Times Spotted 48 | . 18 16 7 . 7 Peak Tracking Total 7 | . 7 3 4 . 3 Tactical Retreats 1 | . . . . . 1 Traps | -11 -10 -9 -9 -9 -8 ------- Run | Yrd Mat Mat Min Exi Min Traps Triggered 3 | . 3 . . . . Indirectly . | . . . . . . Trap Hack Attempts . | . . . . . . Triggered . | . . . . . . Disarmed . | . . . . . . Reprogrammed . | . . . . . . Reused . | . . . . . . Traps Extracted . | . . . . . . Installed . | . . . . . . Triggered . | . . . . . . Machines | -11 -10 -9 -9 -9 -8 ---------- Run | Yrd Mat Mat Min Exi Min Machines Disabled 1 | . . 1 . . . Max in Single Turn 1 | . . 1 . . . Machines Repaired . | . . . . . . Machines Dismantled . | . . . . . . Machines Sabotaged . | . . . . . . Overloaded Fab Kills . | . . . . . . Hacking | -11 -10 -9 -9 -9 -8 --------- Run | Yrd Mat Mat Min Exi Min Machines Accessed 5 | . 1 2 . 2 . Terminals 3 | . 1 2 . . . Fabricators . | . . . . . . Repair Stations . | . . . . . . Recycling Units . | . . . . . . Scanalyzers . | . . . . . . Garrison Access . | . . . . . . Total Hacks 6 | . 2 2 . 2 . Successful 6 | . 2 2 . 2 . Failed . | . . . . . . Catastrophic . | . . . . . . Database Lockouts . | . . . . . . Manual 4 | . 2 1 . 1 . Terminals 4 | . 2 2 . . . Fabricators . | . . . . . . Repair Stations . | . . . . . . Recycling Units . | . . . . . . Scanalyzers . | . . . . . . Garrison Access . | . . . . . . Terminal Hacks 5 | . 2 1 . 2 . Record 1 | . . . . 1 . Branch Access Points 2 | . 1 1 . . . Zone Layout 1 | . 1 . . . . Proto ID Catalog 1 | . . . . 1 . Fabricator Hacks . | . . . . . . Repair Station Hacks . | . . . . . . Recycling Unit Hacks . | . . . . . . Scanalyzer . | . . . . . . Garrison Access Hacks . | . . . . . . Unauthorized Hacks 1 | . . 1 . . . Terminals 1 | . . 1 . . . Operators 1 | . . 1 . . . Fabricators . | . . . . . . Repair Stations . | . . . . . . Recycling Units . | . . . . . . Scanalyzers . | . . . . . . Garrison Access . | . . . . . . Data Cores Recovered . | . . . . . . Used . | . . . . . . Hacking Detections . | . . . . . . Full Trace Events . | . . . . . . Feedback Events . | . . . . . . Feedback Blocked . | . . . . . . Robot Schematics Acquired . | . . . . . . Robots Built . | . . . . . . Authchips . | . . . . . . Time . | . . . . . . Total Robot Build Rating . | . . . . . . Part Schematics Acquired . | . . . . . . Parts Built . | . . . . . . Authchips . | . . . . . . Time . | . . . . . . Total Part Build Rating . | . . . . . . Part Studies Acquired . | . . . . . . Parts Repaired . | . . . . . . Time . | . . . . . . Parts Recycled . | . . . . . . Recycled Matter . | . . . . . . Retrieved Matter . | . . . . . . Retrieved Components . | . . . . . . Parts Scanalyzed . | . . . . . . Part Schematics Acquired . | . . . . . . Parts Damaged . | . . . . . . Bothacking | -11 -10 -9 -9 -9 -8 ------------ Run | Yrd Mat Mat Min Exi Min Used RIF Installer . | . . . . . . Robots Hacked . | . . . . . . Non-combat . | . . . . . . Combat . | . . . . . . Robot Hacks Applied . | . . . . . . Relay Couplers Released . | . . . . . . Fabnet Peak Effective % . | . . . . . . Robots Rewired . | . . . . . . Allies Hacked . | . . . . . . Hacks Repelled . | . . . . . . Allies | -11 -10 -9 -9 -9 -8 -------- Run | Yrd Mat Mat Min Exi Min Total Allies . | . . . . . . Largest Group . | . . . . . . Highest-Rated Group . | . . . . . . Highest-Rated Ally . | . . . . . . Total Orders . | . . . . . . Ally Attacks . | . . . . . . Total Damage . | . . . . . . Kills . | . . . . . . Allies Corrupted . | . . . . . . Allies Melted . | . . . . . . X0-1V1 Amusement Gains 74 | . 30 7 30 . 7 Average Entertainment 29 | . 37 21 33 . 18 Good Acts 3 | . 1 . . . 2 Bad Acts 14 | . 5 3 3 . 3 Intel | -11 -10 -9 -9 -9 -8 ------- Run | Yrd Mat Mat Min Exi Min Active Infowar (turns) 513 | 173 340 . . . . Seismic 513 | 173 340 . . . . Robot Analysis Total . | . . . . . . Derelict Logs Recovered 2 | . . . 2 . . Drone Launches . | . . . . . . Drone Recoveries . | . . . . . . Exploration | -11 -10 -9 -9 -9 -8 ------------- Run | Yrd Mat Mat Min Exi Min Turns Passed 2750 | 253 892 412 702 282 209 Spaces Moved 1653 | 105 429 222 482 263 152 Core 4 | 4 . . . . . Treads 530 | 101 429 . . . . Legs . | . . . . . . Wheels 1119 | . . 222 482 263 152 Hover . | . . . . . . Flight . | . . . . . . Fastest Speed 50 | 50 160 105 95 105 95 Average Speed 127 | 155 164 118 111 106 102 Slowest Speed 260 | 160 260 120 120 120 120 Overloaded Moves . | . . . . . . Propulsion Burnouts . | . . . . . . Robots Hopped . | . . . . . . Potential Cave-ins . | . . . . . . Cave-ins Triggered . | . . . . . . Exploration Rate (%) 41 | 6 46 26 79 61 32 Regions Visited 5 Branch Regions 3 Pre-discovered Areas 1 | . . . . 1 . Known Exits Taken 1 | . . 1 . . . Unknown Exits Taken 4 | 1 1 . 1 1 . Scrap Searched 1 | . . . 1 . . Spaces Dug . | . . . . . . Terrain Destroyed 15 | . . 3 12 . . Melee . | . . . . . . Projectile 5 | . . 3 2 . . AOE 10 | . . . 10 . . Terrain Rammed . | . . . . . . Walls Destroyed . | . . . . . . Machines Disabled . | . . . . . . Actions | -11 -10 -9 -9 -9 -8 --------- Run | Yrd Mat Mat Min Exi Min Total 2061 | 146 538 304 629 266 178 Wait 195 | 2 30 18 136 . 9 Move 1648 | 104 428 221 481 262 152 Hop . | . . . . . . Pick Up 36 | 8 17 10 . 1 . Fast Attach 14 | 7 2 5 . . . Attach 5 | . 1 2 . . 2 Detach . | . . . . . . Swap 10 | . 7 1 2 . . Drop 21 | . 8 10 . 3 . Fire 129 | 25 42 37 10 . 15 Melee . | . . . . . . Ram . | . . . . . . Kick . | . . . . . . Crush 3 | . 3 . . . . Escape Stasis . | . . . . . . Rewire . | . . . . . . Trap . | . . . . . . Miscellaneous . | . . . . . . Route ------- -11/Scrapyard -10/Materials (discovered 3 exits: *Mat / Min / [*Sub]) -9/Materials (discovered 2 exits: *Min x2) -9/Mines (discovered 2 exits: [*Mat] / *Exi) -9/Exiles -8/Mines History --------- Turn | Location | Event 13 | -11/Scrapyard | Discovered new exit (range 16) 254 | -11/Scrapyard | Entered Materials 312 | -10/Materials | Build established: Mutant 510 | -10/Materials | Discovered new exit (range 13) 526 | -10/Materials | Identified exit to Mines 579 | -10/Materials | Discovered new exit (range 6) 590 | -10/Materials | Made a sacrifice at D.C.S.S. Altar Unit 590 | -10/Materials | Forcibly received Sfc. Transmogifier from X0-1V1 747 | -10/Materials | X0-1V1 sent hostile G-34 Mercenary (x4) 754 | -10/Materials | Derelicts attacked the area 927 | -10/Materials | Core integrity fell below 50% 948 | -10/Materials | X0-1V1 made a cryptic comment about sterilization and BL-4Z3 1124 | -10/Materials | Sterilization system engaged 1124 | -10/Materials | Non-combat units ordered to evacuate 1146 | -10/Materials | Entered another Materials area 1146 | -9/Materials | Evolved 2 slots: Propulsion x1, Utility x1 1299 | -9/Materials | Identified exit to Mines 1558 | -9/Materials | Entered Mines 1646 | -9/Mines | Assembled infested the area 2152 | -9/Mines | Learned Materials terminal intel 2154 | -9/Mines | X0-1V1 added 0b10 threat records associated with you (minor) 2176 | -9/Mines | Discovered new exit (range 12) 2207 | -9/Mines | Learned Materials interactive machine intel 2254 | -9/Mines | Discovered new exit (range 5) 2260 | -9/Mines | Entered Exiles 2290 | -9/Exiles | Met 8R-AWN 2308 | -9/Exiles | Met EX-HEX 2349 | -9/Exiles | Met EX-DEC 2355 | -9/Exiles | Learned location of Zion (-7) 2373 | -9/Exiles | Met EX-BIN 2388 | -9/Exiles | Aligned with FarCom system 2389 | -9/Exiles | Given EX-Vault access code 2413 | -9/Exiles | Opened EX-Vault 2423 | -9/Exiles | Found AWS/Gauss 2445 | -9/Exiles | Warned to stay clear of 0b10 Research branches 2533 | -9/Exiles | Discovered new exit (range 10) 2542 | -9/Exiles | Left Exiles lab with AWS/Gauss 2542 | -9/Exiles | Entered Mines 2619 | -8/Mines | Core integrity fell below 50% 2639 | -8/Mines | X0-1V1 announced a LAN party 2704 | -8/Mines | Weapon slot count permanently improved by X0-1V1 (+1) 2742 | -8/Mines | Core integrity fell below 20% 2751 | -8/Mines | Destroyed by G-47 Trooper with Particle Gun Last Messages --------------- 02638_ X0-1V1: "Let the electrons flow!" (+900 energy capacity) 02639_ X0-1V1: "ALERT: Engaging LAN party protocols." 02645_ Sfc. Transmogrifier converts Beam Rifle into Hpw. Shotgun. 02651_ 8 02680_ K-01 Serf collects debris. 02683_ Sfc. Transmogrifier converts Arm. Huge Wheel into VSS Leg (x2). 02684_ K-01 Serf collects debris. 02704_ X0-1V1: "If I've learned anything from roguelikes, it's that more appendages equals more fun." (permanent +1 Weapon slot) 02718_ Sfc. Transmogrifier converts VSS Leg into Carbon-fiber Leg. 02733_ X0-1V1: "School them in the art of offensive power!" 02733_ Chain reaction triggered in Hvy. Ion Engine. 02735_ Critical hit (Burn: +37). 02738_ System corrupted: Matter fused (-8). 02738_ G-50 Soldier suffers critical hit (Burn). 02738_ G-50 Soldier destroyed. 02749_ System corrupted: Hpw. Shotgun jammed. 02749_ G-47 Trooper destroyed. 02751_ X0-1V1 laughs nastily! Map ----- +----------------------------------------------------+ | ?# #????## ## #??????## ##???????????? | | ?# ###### #?????## #???????????? | | ?### """" #????## #???????????? | | ???######## """" ###### ## #??????????? | | ??????????## """" ### ##?# #?????????? | | ???????????## #?## #### #?????????? | | ????????????## ######### #??# #????? | | ?????????????# ##???????# #### #### #????? | | ???????####### #??####??# #????? ####??????? | | ???????# #?## ##?##### ###??????#?????????? | | ???????# ##### #?# #?????# #??????????????????? | | ???????# #?### ### ####### #??????????????????? | | ???????# ### ## #??????????????????? | | ?????### #??? ?###??????????????????? | | ????## # #??? ??????????????????????? | | ??### ## ## #??? ??????????????????????? | | ?# ######### #??# #?????????????????????? | | ?## ####??????## #??# #?????????????????????? | | ??# #####????????## #??# #?????????????????????? | | ??##?????????????# #??# #?????????????????????? | | ?????????????????# ##??# #?????????????????????? | | ?????????????????# #???# #?????????????????????? | | ????????????????## #?###g##????????????????????? | | ?????????????#### #?# #*%#????????????????????? | | ????????????## ##?#;;%##????????????????????? | | ????????????# ##?# @=;#????????????????????? | | ????????????## ##; ;;##????????????????????? | | ?????????????## #; ###?????????????????????? | | ??????????????# #???????????????????????? | | ??????????????## #####???????????????????????? | | ???????????????## ###???????????????????????????? | | ????????????????# ##?????????????????????????????? | | ????????????????# #??????????????????????????????? | | ????????????????# #??????????????????????????????? | | ??????????????? #??????????????????????????????? | | ??????????????#####??????????????????????????????? | | ?????????????????????????????????????????????????? | | ?????????????????????????????????????????????????? | | ?????????????????????????????????????????????????? | | ?????????????????????????????????????????????????? | | ?????????????????????????????????????????????????? | | ?????????????????????????????????????????????????? | | ???????????????????????ss????????????????????????? | | ?????????????????????????????????????????????????? | | ?????????????????????????????????????????????????? | | ?????????????????????????????????????????????????? | | ?????????????????????????????????????????????????? | | ?????????????????????????????????????????????????? | | ?????????????????????????????????????????????????? | | ?????????????????????????????????????????????????? | +----------------------------------------------------+ Best States ------------- Heat Dissipation 28 Energy Generation 14 Energy Capacity 1180 Matter Stores 900 Matter Capacity 900 Sight Range 16 Terrain Scan Density 10 Evasion (%) 41 Recoil Reduction 2 Item Schematics ----------------- None Robot Schematics ------------------ None Fabricated ------------ Nothing Repaired ---------- Nothing Studied --------- None Alien Tech Used ----------------- None Achievements -------------- None Challenges ------------ None Game ------ Seed ThrowingStasisCyclogen Manual? 0 Play Time 00:19:25 Cumulative 687.4 hours Start 2026.08.19 @ 12:07:03 End 2026.08.19 @ 12:27:14 Sessions 1 Manual Loads 0 Difficulty Rogue Special Mode None Game No. 381 Rogue 356 Adventurer 7 Explorer 18 Win Type - Total 67 Types 43/3/9/2/2/1/2/3/0/2 Lore% 95 Gallery% 88 Achievement% 75 Wizard Run 0 Options --------- Layout 0 ASCII 0 Keyboard 0 Movement Numpad Keybinds 0 Fullscreen 1 Font 18/SmallcapsGlow Map View 76x50 Zoom Use 0% Tactical HUD 1 Map Filters NONE Filters NONE Steam 1 RUN: d3793a0c-921f-4f58-a7bb-72c575fe2d09